lending/lending_fUSD_20260102
["ID","MTS","AMOUNT","RATE_DAILY","PERIOD"]
[400323352,1767372640586,-785.930696,0.00040484,2]
[400323353,1767372640598,-7797.00312763,0.00040484,2]
[400323354,1767372640610,-2755.77260863,0.00040484,2]
[400323355,1767372640622,-5000.00031248,0.00040484,2]
[400323397,1767372644576,-726.23756933,0.00024509,2]
[400323398,1767372644890,-472.76243067,0.00024509,2]
[400323399,1767372644900,-529153.25579033,0.00040484,2]
[400323400,1767372644909,-151.0,0.00040484,120]
[400323401,1767372644919,-151.0,0.00040484,120]
[400323402,1767372644928,-151.0,0.00040484,120]
[400323403,1767372644938,-151.0,0.00040484,60]
[400323404,1767372644948,-150.0,0.00040603,7]
[400323405,1767372644957,-150.0,0.00040603,7]
[400323406,1767372644967,-150.0,0.00040603,7]
[400323407,1767372644976,-150.0,0.00040603,7]
[400323408,1767372644986,-150.0,0.00040603,7]
[400323409,1767372644995,-666.0,0.0004064,30]
[400323410,1767372645005,-2736.17403043,0.00040641,15]
[400323411,1767372645018,-666.0,0.00040727,30]
[400323412,1767372645027,-2736.17403043,0.00040909,15]
[400323413,1767372645036,-504.0,0.00040918,22]
[400323414,1767372645045,-500.0,0.00041,120]
[400323415,1767372645057,-600.0,0.00041022,30]
[400323416,1767372645066,-999.0,0.00041095,120]
[400323417,1767372645076,-345.06351908,0.00041096,2]
[400323418,1767372645085,-150.0,0.00041096,120]
[400323419,1767372645095,-500.0,0.00041096,31]
[400323420,1767372645104,-649.99999999,0.00041096,31]
[400323421,1767372645113,-500.0,0.00041096,31]
[400323422,1767372645122,-500.0,0.00041096,31]
[400323423,1767372645132,-500.0,0.00041096,31]
[400323424,1767372645141,-500.0,0.00041096,31]
[400323425,1767372645152,-249.003,0.000411,120]
[400323426,1767372645161,-500.0,0.0004111,120]
[400323427,1767372645170,-2736.17403043,0.00041176,15]
[400323428,1767372645179,-2100.0,0.00041306,60]
[400323429,1767372645189,-2736.17403043,0.00041444,15]
[400323430,1767372645199,-2000.0,0.000415,2]
[400323431,1767372645208,-200.0,0.00041516,120]
[400323432,1767372645217,-600.0,0.00041569,120]
[400323433,1767372645225,-1000.0,0.0004158,60]
[400323434,1767372645234,-500.0,0.0004158,60]
[400323435,1767372645243,-269.07215259,0.00041591,7]
[400323436,1767372645253,-504.0,0.00041628,23]
[400323437,1767372645262,-2736.17403043,0.00041712,15]
[400323438,1767372645272,-2100.0,0.00041854,60]
[400323439,1767372645281,-500.0,0.00041877,7]
[400323440,1767372645290,-500.0,0.00041877,7]
[400323441,1767372645299,-500.0,0.00041877,7]
[400323442,1767372645309,-508.2,0.00041877,7]
[400323443,1767372645318,-500.0,0.00041877,7]
[400323444,1767372645327,-775.5319,0.000419,20]
[400323445,1767372645336,-660.52,0.00041918,30]
[400323446,1767372645346,-482.01,0.00041918,30]
[400323447,1767372645355,-482.01,0.00041918,30]
[400323448,1767372645365,-660.52,0.00041918,30]
[400323449,1767372645375,-660.52,0.00041918,30]
[400323450,1767372645385,-162.72,0.00041918,30]
[400323451,1767372645395,-660.52,0.00041918,30]
[400323452,1767372645404,-660.52,0.00041918,30]
[400323453,1767372645414,-288.7,0.00041918,30]
[400323454,1767372645425,-2736.17403043,0.0004198,15]
[400323455,1767372645434,-285.183402,0.00041998,120]
[400323456,1767372645444,-3974.09923439,0.00042,30]
[400323457,1767372645453,-220.0,0.00042,120]
[400323458,1767372645463,-209.71,0.00042055,30]
[400323459,1767372645473,-465.87,0.00042055,30]
[400323460,1767372645482,-304.54,0.00042055,30]
[400323461,1767372645491,-150.0,0.00042055,30]
[400323462,1767372645502,-465.87,0.00042055,30]
[400323463,1767372645512,-178.8,0.00042055,30]
[400323464,1767372645522,-150.0,0.00042055,30]
[400323465,1767372645532,-465.87,0.00042055,30]
[400323466,1767372645543,-178.8,0.00042055,30]
[400323468,1767372645554,-150.0,0.00042055,30]
[400323469,1767372645567,-222.05,0.00042055,30]
[400323471,1767372645577,-178.8,0.00042055,30]
[400323473,1767372645587,-150.0,0.00042055,30]
[400323474,1767372645597,-177.03,0.00042055,30]
[400323475,1767372645607,-150.0,0.00042055,30]
[400323476,1767372645616,-150.0,0.00042055,30]
[400323477,1767372645627,-150.0,0.00042055,30]
[400323478,1767372645639,-600.0,0.00042117,120]
[400323479,1767372645648,-1000.0,0.00042128,60]
[400323480,1767372645657,-500.0,0.00042128,60]
[400323481,1767372645667,-999.0,0.00042191,120]
[400323482,1767372645677,-2736.17403043,0.00042247,15]
[400323483,1767372645687,-150.0,0.00042329,30]
[400323484,1767372645696,-504.0,0.00042339,23]
[400323485,1767372645706,-2100.0,0.00042402,60]
[400323486,1767372645715,-2736.17403043,0.00042515,15]
[400323487,1767372645725,-500.0,0.00042576,60]
[400323488,1767372645735,-200.0,0.00042576,60]
[400323489,1767372645745,-150.0,0.00042576,60]
[400323490,1767372645754,-150.0,0.00042576,60]
[400323491,1767372645764,-200.0,0.00042576,60]
[400323492,1767372645773,-250.0,0.00042576,2]
[400323493,1767372645782,-200.0,0.00042576,60]
[400323494,1767372645792,-150.0,0.00042576,60]
[400323495,1767372645801,-150.0,0.00042576,60]
[400323496,1767372645810,-200.0,0.00042576,60]
[400323497,1767372645819,-150.0,0.00042576,60]
[400323498,1767372645828,-150.0,0.00042576,60]
[400323499,1767372645838,-252.33,0.00042627,120]
[400323500,1767372645847,-676.65,0.00042627,120]
[400323501,1767372645856,-244.99,0.00042627,120]
[400323502,1767372645865,-327.16608182,0.00042627,120]
[400323503,1767372645874,-168.45976974,0.00042627,120]
[400323504,1767372645883,-600.0,0.00042627,120]
[400323505,1767372645892,-602.53231379,0.00042627,120]
[400323506,1767372645901,-300.0,0.00042634,2]
[400323508,1767372645911,-300.0,0.00042652,2]
[400323509,1767372645919,-314.89987668,0.00042664,2]
[400323510,1767372645929,-600.0,0.00042665,120]
[400323511,1767372645938,-1000.0,0.00042676,60]
[400323512,1767372645947,-500.0,0.00042676,60]
[400323513,1767372645957,-500.0,0.00042713,60]
[400323514,1767372645966,-150.0,0.00042713,60]
[400323515,1767372645975,-249.62704522,0.00042713,60]
[400323516,1767372645984,-170.07019094,0.00042713,60]
[400323517,1767372645994,-244.10341084,0.00042713,60]
[400323518,1767372646003,-150.0,0.00042713,60]
[400323519,1767372646017,-300.0,0.00042715,2]
[400323520,1767372646026,-150.0,0.0004274,30]
[400323521,1767372646035,-150.0,0.0004274,30]
[400323522,1767372646045,-150.0,0.0004274,30]
[400323523,1767372646056,-164.99254235,0.0004274,30]
[400323524,1767372646066,-150.0,0.0004274,30]
[400323525,1767372646076,-150.0,0.0004274,30]
[400323526,1767372646086,-300.0,0.00042758,2]
[400323527,1767372646095,-4352.2494,0.00042777,2]
[400323528,1767372646104,-1000.0,0.00042777,120]
[400323529,1767372646113,-852.5912,0.00042777,2]
[400323530,1767372646122,-1043.71526051,0.00042777,9]
[400323531,1767372646133,-300.0,0.00042777,2]
[400323532,1767372646143,-5000.0,0.00042777,120]
[400323533,1767372646153,-7897.7107,0.00042782,2]
[400323534,1767372646163,-5883.17588592,0.00042783,15]
[400323535,1767372646173,-2736.17403043,0.00042783,15]
[400323536,1767372646182,-300.0,0.00042798,2]
[400323537,1767372646191,-253.0,0.000428,40]
[400323538,1767372646200,-300.0,0.00042801,2]
[400323539,1767372646210,-187.97768291,0.00042807,120]
[400323540,1767372646219,-509.51794774,0.00042807,120]
[400323541,1767372646229,-300.0,0.00042809,2]
[400323542,1767372646238,-500.0,0.0004285,60]
[400323543,1767372646247,-250.0,0.0004285,60]
[400323544,1767372646256,-191.55276757,0.00042872,7]
[400323545,1767372646267,-191.55276757,0.00042872,7]
[400323546,1767372646276,-500.0,0.00042876,120]
[400323547,1767372646285,-388.05577611,0.00042876,120]
[400323548,1767372646295,-150.0,0.00042877,30]
[400323549,1767372646305,-150.0,0.00042877,30]
[400323550,1767372646315,-150.0,0.00042877,30]
[400323551,1767372646324,-150.0,0.00042877,30]
[400323552,1767372646334,-150.0,0.00042877,30]
[400323553,1767372646344,-150.0,0.00042877,30]
[400323554,1767372646354,-150.0,0.00042877,30]
[400323555,1767372646363,-150.0,0.00042877,30]
[400323556,1767372646373,-150.0,0.00042877,30]
[400323557,1767372646383,-150.0,0.00042877,30]
[400323558,1767372646395,-150.0,0.00042877,30]
[400323559,1767372646405,-150.0,0.00042877,30]
[400323560,1767372646415,-150.0,0.00042877,30]
[400323561,1767372646426,-660.52,0.00042877,30]
[400323562,1767372646436,-660.52,0.00042877,30]
[400323563,1767372646445,-660.52,0.00042877,30]
[400323564,1767372646455,-660.52,0.00042877,30]
[400323565,1767372646464,-660.52,0.00042877,30]
[400323566,1767372646473,-1234.77,0.00042877,30]
[400323567,1767372646483,-200.0,0.00042877,7]
[400323568,1767372646492,-151.0,0.00042877,14]
[400323569,1767372646503,-152.0,0.00042877,14]
[400323570,1767372646513,-151.0,0.00042877,14]
[400323571,1767372646523,-152.0,0.00042877,14]
[400323572,1767372646532,-151.0,0.00042877,14]
[400323573,1767372646543,-152.0,0.00042877,14]
[400323574,1767372646553,-1258.0,0.00042877,14]
[400323575,1767372646563,-152.0,0.00042877,14]
[400323576,1767372646572,-151.0,0.00042877,14]
[400323577,1767372646582,-1258.0,0.00042877,14]
[400323578,1767372646591,-151.0,0.00042877,14]
[400323579,1767372646601,-152.0,0.00042877,14]
[400323580,1767372646610,-1258.0,0.00042877,14]
[400323581,1767372646619,-152.0,0.00042877,14]
[400323582,1767372646629,-151.0,0.00042877,14]
[400323583,1767372646640,-1258.0,0.00042877,14]
[400323584,1767372646657,-152.0,0.00042877,14]
[400323585,1767372646671,-151.0,0.00042877,14]
[400323586,1767372646681,-1258.0,0.00042877,14]
[400323587,1767372646691,-152.0,0.00042877,14]
[400323588,1767372646701,-151.0,0.00042877,14]
[400323589,1767372646710,-1258.0,0.00042877,14]
[400323591,1767372646720,-151.0,0.00042877,14]
[400323593,1767372646729,-152.0,0.00042877,14]
[400323594,1767372646740,-1095.52601387,0.00042877,14]
[400323595,1767372646750,-151.0,0.00042877,14]
[400323596,1767372646759,-206.21647338,0.00042877,14]
[400323597,1767372646768,-151.0,0.00042877,14]
[400323598,1767372646778,-151.0,0.00042877,14]
[400323599,1767372646787,-151.0,0.00042877,14]
[400323600,1767372646796,-151.0,0.00042877,14]
[400323601,1767372646805,-207.51524834,0.00042877,14]
[400323602,1767372646815,-152.778924,0.00042877,14]
[400323603,1767372646824,-151.0,0.00042877,30]
[400323604,1767372646833,-200.0,0.00042877,7]
[400323605,1767372646843,-1202.0,0.00042877,30]
[400323606,1767372646852,-150.0,0.00042879,60]
[400323607,1767372646861,-150.0,0.00042881,120]
[400323608,1767372646870,-151.0,0.00042883,7]
[400323609,1767372646880,-151.0,0.00042883,7]
[400323610,1767372646891,-151.0,0.00042883,7]
[400323611,1767372646900,-243.336503,0.00042883,120]
[400323612,1767372646910,-151.0,0.00042883,120]
[400323613,1767372646919,-151.0,0.00042883,120]
[400323614,1767372646928,-151.0,0.00042883,120]
[400323615,1767372646938,-151.0,0.00042883,120]
[400323616,1767372646947,-151.0,0.00042883,120]
[400323617,1767372646956,-151.0,0.00042883,120]
[400323618,1767372646966,-151.0,0.00042883,120]
[400323619,1767372646976,-193.720753,0.00042883,120]
[400323620,1767372646986,-151.0,0.00042883,120]
[400323621,1767372646995,-151.0,0.00042883,120]
[400323622,1767372647004,-151.0,0.00042883,120]
[400323623,1767372647018,-151.0,0.00042883,120]
[400323624,1767372647028,-1342.14,0.00042886,120]
[400323625,1767372647037,-16055.5904627,0.000429,120]
[400323626,1767372647047,-180.7,0.000429,30]
[400323627,1767372647058,-152.26,0.000429,14]
[400323628,1767372647067,-311.51,0.000429,14]
[400323629,1767372647077,-290.83,0.000429,30]
[400323630,1767372647086,-113650.14714098,0.00042907,27]
[400323631,1767372647097,-5419.44662054,0.00042907,4]
[400323632,1767372647107,-374387.74757482,0.00042907,7]
[400323633,1767372647125,-7871.792514,0.00042907,7]
[400323634,1767372647137,-490957.75272402,0.00042907,7]
[400323635,1767372647307,-574450.87964301,0.00042907,7]
[400323636,1767372647382,-33.14687509,0.00042907,7]
[400323637,1767372647396,-443.4506406,0.00042907,7]
[400323638,1767372647407,-1359.27,0.00042907,7]
[400323639,1767372647418,-345.28250284,0.00042907,7]
[400323640,1767372647429,-1593.54246213,0.00042907,7]
[400323641,1767372647441,-13209.76184703,0.00042907,7]
[400323642,1767372647453,-26273.20068365,0.00042907,7]
[400323643,1767372647465,-45034.11085354,0.00042907,7]
[400323644,1767372647506,-7054.1822017,0.00042907,7]
[400323645,1767372647518,-59794.85756083,0.00042907,7]
[400323646,1767372647530,-372.3666611,0.00042907,7]
[400323647,1767372647541,-5875.43839788,0.00042907,7]
[400323648,1767372724016,500.0,0.00014773,2]
[400323649,1767372724064,505.70610325,0.00015321,2]
[400323650,1767372724096,500.0,0.00014773,2]
[400323651,1767372724142,1000.0,0.00015321,2]
[400323652,1767372724197,1500.0,0.00015868,2]
[400323653,1767372738152,501.46542866,0.00014773,2]
[400323655,1767372785154,511.5231561,0.00014773,2]
[400323656,1767372785939,500.0,0.00014773,2]
[400323657,1767372785998,505.52174355,0.00015321,2]
[400323658,1767372787006,500.0,0.00014773,2]
[400323659,1767372791723,1000.0,0.00015321,2]
[400323660,1767372791782,2000.0,0.00016416,2]
[400323661,1767372791813,1500.0,0.00015868,2]
[400323662,1767372791866,2500.0,0.00016964,2]
[400323663,1767372792601,500.0,0.00014773,2]
[400323664,1767372792655,842.8792536,0.00015321,2]
[400323665,1767372792899,500.0,0.00014773,2]
[400323666,1767372795752,501.45915944,0.00014773,2]
[400323667,1767372797303,402.11191562,0.00014773,2]
[400323668,1767372843130,500.0,0.00016973,2]
[400323669,1767372843639,500.0,0.00016973,2]
[400323670,1767372846058,608.88646919,0.00016973,2]
[400323671,1767372846314,500.0,0.00016973,2]
[400323672,1767372846768,160.45053391,0.00016973,2]
[400323673,1767372851032,500.0,0.00016973,2]
[400323674,1767372851969,434.51036606,0.00015356,2]
[400323675,1767372852619,500.0,0.00016973,2]
[400323676,1767372853297,500.0,0.00016973,2]
[400323677,1767372853347,500.0,0.00016973,2]
[400323678,1767372855953,500.0,0.00016973,2]
[400323679,1767372856289,500.0,0.00016973,2]
[400323680,1767372856380,500.0,0.00016973,2]
[400323681,1767372902977,500.0,0.00014773,2]
[400323682,1767372903040,904.19026726,0.00015321,2]
[400323683,1767372903263,500.0,0.00016973,2]
[400323684,1767372904093,427.53056775,0.00016973,2]
[400323685,1767372905896,500.0,0.00015321,2]
[400323686,1767372905951,500.0,0.00014773,2]
[400323687,1767372906102,500.0,0.00014773,2]
[400323688,1767372910162,500.0,0.00016973,2]
[400323689,1767372911844,568.37391692,0.00016973,2]
[400323690,1767372913006,500.0,0.00014773,2]
[400323691,1767372913038,500.0,0.00016973,2]
[400323692,1767372913071,1000.0,0.00015321,2]
[400323693,1767372913115,1500.0,0.00015868,2]
[400323694,1767372913158,831.03088648,0.00016416,2]
[400323695,1767372913303,500.0,0.00016973,2]
[400323696,1767372913640,3000.0,0.00015,2]
[400323697,1767372914941,500.0,0.00016973,2]
[400323698,1767372916171,181.96938365,0.00016973,2]
[400323699,1767372916204,544.82078293,0.00016973,2]
[400323700,1767372918271,500.0,0.00016973,2]
[400323701,1767372918302,579.68523701,0.00016973,2]
[400323702,1767372968669,500.0,0.00016973,2]
[400323703,1767372970866,500.0,0.00016973,2]
[400323704,1767372971350,500.0,0.00016973,2]
[400323705,1767372971568,500.0,0.00016973,2]
[400323706,1767372973945,500.0,0.00016973,2]
[400323707,1767372974488,500.0,0.00016973,2]
[400323708,1767372975389,500.0,0.00016973,2]
[400323709,1767373023323,500.0,0.00016973,2]
[400323710,1767373023357,160.78615596,0.00014773,2]
[400323711,1767373025450,576.5906538,0.00016973,2]
[400323712,1767373029992,500.0,0.00016973,2]
[400323713,1767373033476,500.0,0.00016973,2]
[400323714,1767373033507,500.0,0.00016973,2]
[400323715,1767373034424,500.0,0.00016973,2]
[400323716,1767373037776,500.0,0.00016973,2]
[400323717,1767373083997,502.3109213,0.00016973,2]
[400323718,1767373086833,500.0,0.00016973,2]
[400323719,1767373087280,500.0,0.00014773,2]
[400323720,1767373087648,500.0,0.00016973,2]
[400323721,1767373088539,500.0,0.00016973,2]
[400323722,1767373090524,300.0,0.0001625,2]
[400323723,1767373090644,300.0,0.00016146,2]
[400323724,1767373093247,500.0,0.00016973,2]
[400323725,1767373095161,500.0,0.00016973,2]
[400323726,1767373095569,500.0,0.00016973,2]
[400323727,1767373095606,500.0,0.00016973,2]
[400323728,1767373098587,500.0,0.00016973,2]
[400323729,1767373098856,500.0,0.00016973,2]
[400323730,1767373099373,500.0,0.00016973,2]
[400323731,1767373115126,-151.0,0.00017129,2]
[400323732,1767373115157,-151.0,0.00017129,2]
[400323733,1767373115184,-300.0,0.00017169,2]
[400323734,1767373115212,-300.0,0.00017169,2]
[400323735,1767373115239,-186.31098279,0.00017169,2]
[400323736,1767373115266,-550.0,0.0001752,2]
[400323737,1767373115292,-300.0,0.0001752,2]
[400323738,1767373115318,-250.0,0.0001752,2]
[400323739,1767373115344,-1000.0,0.00017521,2]
[400323740,1767373115369,-501.11939293,0.00017521,2]
[400323741,1767373115395,-500.0,0.00017521,2]
[400323742,1767373115422,-500.0,0.00017521,2]
[400323743,1767373115448,-503.84453135,0.00017521,2]
[400323744,1767373115482,-500.0,0.00017521,2]
[400323745,1767373115512,-520.62771119,0.00017521,2]
[400323746,1767373115540,-194.39882883,0.00017521,2]
[400323747,1767373115567,-591.69855291,0.00017521,2]
[400323748,1767373162773,832.0,0.0001668,2]
[400323749,1767373166141,832.0,0.00016585,2]
[400323750,1767373194769,-151.0,0.00017086,2]
[400323751,1767373194798,-151.0,0.00017086,2]
[400323752,1767373194826,-151.0,0.00017171,2]
[400323753,1767373194855,-151.0,0.00017171,2]
[400323754,1767373194884,-408.30144709,0.00017521,2]
[400323755,1767373194914,-163.7038497,0.00017973,2]
[400323756,1767373194943,-3458.65382842,0.00018513,2]
[400323757,1767373195107,-730.69174958,0.00018513,2]
[400323758,1767373195136,-935.0,0.00018606,2]
[400323759,1767373195169,-250.0,0.00018653,2]
[400323760,1767373195198,-250.0,0.00018888,2]
[400323761,1767373195226,-250.0,0.00019272,2]
[400323762,1767373195256,-193.0,0.00019272,2]
[400323763,1767373195288,-500.0,0.000195,2]
[400323764,1767373195323,-830.0,0.00019595,2]
[400323765,1767373195365,-300.0,0.00019599,2]
[400323766,1767373195396,-331.62650084,0.00019762,2]
[400323767,1767373195453,-859.37349916,0.00019762,2]
[400323768,1767373197924,-6336.52074338,0.0001992,2]
[400323769,1767373198086,-10000.01,0.0001992,2]
[400323770,1767373198274,-1929.97688847,0.0001992,2]
[400323771,1767373198304,-420.0,0.0002135,2]
[400323772,1767373198332,-495.76,0.00022775,2]
[400323773,1767373198393,-4308.53622306,0.00022824,2]
[400323774,1767373201071,-151.0,0.0001814,2]
[400323775,1767373201101,-151.0,0.0001814,2]
[400323776,1767373201133,-986.31770996,0.00022824,2]
[400323777,1767373201164,-440.32,0.0002284,2]
[400323778,1767373201191,-495.76,0.00023049,2]
[400323779,1767373201220,-440.32,0.00023114,2]
[400323780,1767373201248,-312.04,0.00023323,2]
[400323781,1767373201276,-1132.28229065,0.00023673,2]
[400323782,1767373201304,-500.0,0.00023841,2]
[400323783,1767373201332,-150.0,0.00024509,2]
[400323784,1767373201363,-150.0,0.00024509,2]
[400323785,1767373201391,-31.83199878,0.00024509,2]
[400323786,1767373201524,-118.26600122,0.00024509,2]
[400323787,1767373201553,-150.0,0.00024509,2]
[400323788,1767373201583,-150.0,0.00024509,2]
[400323789,1767373201614,-150.0,0.00024509,2]
[400323790,1767373201642,-150.0,0.00024509,2]
[400323791,1767373201672,-2019.47799756,0.00024509,2]
[400323792,1767373201849,-300.0,0.00024508,2]
[400323793,1767373201860,-1200.0,0.00024508,2]
[400323794,1767373201870,-3174.52200244,0.00024509,2]
[400323795,1767373204194,500.0,0.00016973,2]
[400323796,1767373204299,-1000.0,0.00017521,2]
[400323797,1767373204330,-357.0,0.00022824,2]
[400323798,1767373204362,-1424.0,0.00024508,2]
[400323799,1767373204424,477.14944321,0.00017521,2]
[400323800,1767373204469,500.0,0.00016973,2]
[400323801,1767373204502,500.0,0.00016973,2]
[400323802,1767373204534,1000.0,0.00017521,2]
[400323803,1767373204606,500.0,0.00014773,2]
[400323804,1767373204654,501.0,0.000196,2]
[400323805,1767373204688,959.86055679,0.00015321,2]
[400323806,1767373204711,40.13944321,0.00015321,2]
[400323807,1767373204739,2001.74704855,0.00016416,2]
[400323808,1767373204767,1500.0,0.00015868,2]
[400323809,1767373204795,1403.0,0.00022638,2]
[400323810,1767373204907,3463.0,0.00022638,2]
[400323811,1767373204936,501.0,0.00020271,2]
[400323812,1767373205162,501.0,0.00020942,3]
[400323813,1767373205410,501.0,0.00021613,3]
[400323814,1767373205668,89.12350824,0.00022284,4]
[400323815,1767373205693,411.87649176,0.00022284,4]
[400323816,1767373205950,501.0,0.00022956,5]
[400323817,1767373206281,501.0,0.00023627,5]
[400323818,1767373206692,501.0,0.00024298,6]
[400323819,1767373207084,801.24318658,0.00016438,2]
[400323820,1767373213613,250.0,0.00023373,2]
[400323821,1767373214479,4814.0,0.00022638,2]
[400323822,1767373216739,151.0,0.00020933,2]
[400323823,1767373217105,151.0,0.00020933,2]
[400323824,1767373219463,-200.0,0.00024509,2]
[400323825,1767373224235,2433.0,0.00022638,2]
[400323831,1767373232857,613.0,0.00022638,2]
[400323832,1767373232886,257.36,0.00021173,2]
[400323833,1767373233326,151.0,0.00021173,2]
[400323835,1767373253782,-151.0,0.00020982,2]
[400323837,1767373253812,-1328.0,0.00022638,2]
[400323838,1767373253844,-565.0,0.00022638,2]
[400323839,1767373263691,1000.0,0.00017521,2]
[400323840,1767373263721,500.0,0.00016973,2]
[400323841,1767373263847,500.0,0.00016973,2]
[400323842,1767373263894,1000.0,0.00017521,2]
[400323843,1767373265604,151.0,0.00021405,2]
[400323844,1767373266654,500.0,0.00017521,2]
[400323845,1767373266714,500.0,0.00016973,2]
[400323846,1767373270022,1265.0,0.00022638,2]
[400323848,1767373282289,151.0,0.00021542,2]
[400323849,1767373288725,433.0,0.00022638,2]
[400323850,1767373298464,151.0,0.00021537,2]
[400323852,1767373314619,151.0,0.00021537,2]
[400323853,1767373323648,500.0,0.00016973,2]
[400323854,1767373323709,1000.0,0.00017521,2]
[400323857,1767373331067,151.0,0.00021481,2]
[400323858,1767373347374,151.0,0.00021472,2]
[400323859,1767373383124,500.0,0.00016973,2]
[400323860,1767373383151,500.0,0.00016973,2]
[400323861,1767373383176,500.0,0.00016973,2]
[400323862,1767373383202,1000.0,0.00017521,2]
[400323863,1767373383232,1000.0,0.00017521,2]
[400323864,1767373383260,1000.0,0.00017521,2]
[400323865,1767373383288,500.0,0.00016973,2]
[400323866,1767373383314,1000.0,0.00017521,2]
[400323867,1767373383420,47.01,0.00016973,2]
[400323868,1767373383442,452.99,0.00016973,2]
[400323869,1767373383473,1000.0,0.00017521,2]
[400323870,1767373385233,500.0,0.00014773,2]
[400323871,1767373385296,1000.0,0.00015321,2]
[400323872,1767373385337,1500.0,0.00015868,2]
[400323873,1767373385370,2500.0,0.00016964,2]
[400323874,1767373385397,2044.84324759,0.00017512,2]
[400323875,1767373385440,1002.17675241,0.00016416,2]
[400323876,1767373385463,997.82324759,0.00016416,2]
[400323877,1767373385494,500.0,0.00016973,2]
[400323878,1767373385546,1000.0,0.00017521,2]
[400323879,1767373386061,500.0,0.00016973,2]
[400323880,1767373386093,1000.0,0.00017521,2]
[400323881,1767373386520,500.0,0.00016973,2]
[400323882,1767373386553,189.7462599,0.00017521,2]
[400323884,1767373395728,151.0,0.00021514,2]
[400323886,1767373427172,-151.0,0.00021615,2]
[400323887,1767373443267,500.0,0.00016973,2]
[400323888,1767373443340,1000.0,0.00017521,2]
[400323889,1767373443387,1000.0,0.00017521,2]
[400323890,1767373443423,500.0,0.00016973,2]
[400323891,1767373443995,151.0,0.00021451,2]
[400323893,1767373504003,285.58272602,0.00016973,2]
[400323894,1767373504181,500.0,0.00016973,2]
[400323895,1767373590136,5576.3,0.00011925,2]
[400323896,1767373590351,3638.12727398,0.00012552,2]
[400323897,1767373590376,1938.17272602,0.00012552,2]
[400323898,1767373590552,5576.3,0.0001318,2]
[400323899,1767373590753,2485.53727398,0.00013808,2]
[400323900,1767373590776,3090.76272602,0.00013808,2]
[400323901,1767373590962,5576.3,0.00014435,2]
[400323902,1767373591208,1332.94727398,0.00015063,2]
[400323903,1767373591231,4243.35272602,0.00015063,2]
[400323904,1767373591427,5576.3,0.0001569,2]
[400323905,1767373591620,180.35727398,0.00016318,2]
[400323906,1767373591644,5395.94272602,0.00016318,2]
[400323907,1767373591828,4604.06727398,0.00016946,2]
[400323908,1767373591857,972.23272602,0.00016946,2]
[400323909,1767373803784,502.86977895,0.00016973,2]
[400323910,1767373803892,500.0,0.00016973,2]
[400323911,1767373806833,500.0,0.00016973,2]
[400323912,1767373813352,151.0,0.0001669,2]
[400323913,1767373814278,151.0,0.0001669,2]